bitfinex/quotes_SOLUSD_20220218
["timestamp","ask_amount","ask_price","bid_price","bid_amount"]
[1645192415528,47.10318991,94.364,94.3,15.9061]
[1645192416130,1.23971097,94.324,94.293,5.3]
[1645192416325,1.23971097,94.324,94.292,45.90622652]
[1645192417429,1.23971097,94.324,94.271,5.301]
[1645192417629,1.23971097,94.324,94.26,53.0313]
[1645192417630,5.301,94.323,94.245,5.301]
[1645192417829,7.9303831,94.323,94.226,28.0382]
[1645192418026,2.6293831,94.322,94.226,28.0382]
[1645192418229,15.9162,94.32,94.226,28.0382]
[1645192418530,40.12643508,94.319,94.228,106.2]
[1645192418728,40.12643508,94.319,94.229,5.303]
[1645192419331,40.12643508,94.319,94.25,15.9157]
[1645192419529,40.12643508,94.319,94.252,35.32812681]
[1645192419730,5.303,94.318,94.252,35.32812681]
[1645192421231,5.303,94.318,94.273,0.90361754]
[1645192421436,2.6293831,94.317,94.273,0.90361754]
[1645192421631,5.301,94.316,94.273,0.90361754]
[1645192421932,106.2,94.309,94.273,0.90361754]
[1645192422136,5.301,94.308,94.273,0.90361754]
[1645192422334,106.2,94.307,94.273,0.90361754]
[1645192422836,2.6293831,94.306,94.273,0.90361754]
[1645192423334,15.9195,94.3,94.273,0.90361754]
[1645192423737,54.20261674,94.299,94.273,0.90361754]
[1645192426337,54.20261674,94.299,94.254,38.80333735]
[1645192427163,54.20261674,94.299,94.254,1.05672377]
[1645192427966,59.64261674,94.299,94.254,1.05672377]
[1645192428362,64.94561674,94.299,94.254,1.05672377]
[1645192428964,10.743,94.299,94.254,1.05672377]
[1645192429161,5.303,94.299,94.254,1.05672377]
[1645192430767,24.3126,94.308,94.254,1.05672377]
[1645192430973,24.3126,94.308,94.249,47.01505602]
[1645192432178,24.3126,94.308,94.25,15.9158]
[1645192432379,7.9323831,94.307,94.249,1.05950322]
[1645192432675,108.8293831,94.306,94.249,1.05950322]
[1645192432875,5.303,94.305,94.249,1.05950322]
[1645192433078,114.1323831,94.305,94.249,1.05950322]
[1645192433277,2.6293831,94.304,94.249,51.22568974]
[1645192433475,5.303,94.303,94.249,51.22568974]
[1645192433680,5.303,94.303,94.249,1.05950322]
[1645192433879,2.6293831,94.302,94.249,1.05950322]
[1645192434079,15.9198,94.3,94.249,1.05950322]
[1645192434480,7.9323831,94.299,94.249,1.05950322]
[1645192434778,46.33051022,94.298,94.249,1.05950322]
[1645192434979,5.303,94.297,94.249,1.05950322]
[1645192435381,7.9323831,94.297,94.249,1.05950322]
[1645192436180,15.9221,94.29,94.249,1.05950322]
[1645192436481,5.303,94.289,94.238,48.51943786]
[1645192436678,5.303,94.289,94.238,0.94898485]
[1645192438085,2.6293831,94.288,94.238,0.94898485]
[1645192438305,44.16887414,94.279,94.238,0.94898485]
[1645192438504,5.304,94.278,94.238,0.94898485]
[1645192440104,5.304,94.289,94.238,0.94898485]
[1645192440907,2.6293831,94.288,94.238,0.94898485]
[1645192441208,5.304,94.287,94.213,23.4404]
[1645192441609,106.2,94.286,94.213,23.4404]
[1645192441808,5.305,94.285,94.214,46.63782218]
[1645192442206,24.2061,94.284,94.214,46.63782218]
[1645192442408,15.9231,94.28,94.214,46.63782218]
[1645192442609,5.305,94.279,94.214,46.63782218]
[1645192444813,5.305,94.283,94.214,46.63782218]
[1645192445315,40.37601421,94.282,94.214,46.63782218]
[1645192445513,5.305,94.281,94.214,46.63782218]
[1645192446116,0.99503101,94.279,94.214,46.63782218]
[1645192446323,5.305,94.278,94.214,46.63782218]
[1645192446516,0.99503101,94.279,94.214,46.63782218]
[1645192447318,5.305,94.278,94.214,46.63782218]
[1645192447517,0.99503101,94.279,94.214,46.63782218]
[1645192447919,0.99503101,94.279,94.211,5.305]
[1645192448326,5.305,94.278,94.203,5.305]
[1645192448520,5.305,94.278,94.204,22.8836]
[1645192449121,5.305,94.278,94.205,44.48715732]
[1645192451122,5.305,94.278,94.216,0.84384609]
[1645192451323,5.305,94.279,94.216,0.84384609]
[1645192454327,15.9231,94.28,94.216,0.84384609]
[1645192455628,5.305,94.279,94.216,0.84384609]
[1645192456226,5.305,94.279,94.205,45.33071054]
[1645192459030,15.9231,94.28,94.206,5.305]
[1645192461133,15.9231,94.28,94.207,0.84516419]
[1645192461331,15.9231,94.28,94.208,5.305]
[1645192461732,5.305,94.279,94.207,0.84516419]
[1645192465233,15.9248,94.27,94.207,0.84516419]
[1645192465435,5.305,94.269,94.207,0.84516419]
[1645192465636,106.2,94.267,94.207,0.84516419]
[1645192465838,106.2,94.265,94.207,0.84516419]
[1645192466036,5.305,94.264,94.207,0.84516419]
[1645192466235,41.71724693,94.263,94.207,0.84516419]
[1645192466435,41.71724693,94.263,94.202,0.00113501]
[1645192466436,5.305,94.262,94.202,0.84600626]
[1645192467440,15.9282,94.26,94.202,0.84600626]
[1645192467640,5.306,94.259,94.202,0.84600626]
[1645192468040,111.506,94.262,94.202,0.84600626]
[1645192468742,106.2,94.259,94.202,0.84600626]
[1645192468947,5.306,94.258,94.202,0.84600626]
[1645192469442,15.9286,94.25,94.202,0.84600626]
[1645192469643,51.65503061,94.248,94.202,0.84600626]
[1645192469842,5.306,94.247,94.202,0.84600626]
[1645192470242,111.506,94.247,94.202,0.84600626]
[1645192470542,5.306,94.247,94.202,0.84600626]
[1645192470742,23.6763,94.246,94.202,0.84600626]
[1645192470952,5.306,94.245,94.202,0.00113501]
[1645192471342,23.6763,94.246,94.202,0.00113501]
[1645192471973,23.4116,94.259,94.202,0.00113501]
[1645192473373,24.5533,94.258,94.202,0.00113501]
[1645192474875,5.306,94.257,94.202,0.00113501]
[1645192475073,15.9281,94.25,94.202,0.00113501]
[1645192475274,5.306,94.249,94.202,0.00113501]
[1645192476278,15.9281,94.25,94.202,0.00113501]
[1645192476879,5.306,94.257,94.202,0.00113501]
[1645192477078,24.5533,94.258,94.202,0.00113501]
[1645192477275,5.306,94.257,94.202,0.00113501]
[1645192478375,15.9282,94.25,94.202,0.00113501]
[1645192478878,5.306,94.257,94.202,0.00113501]
[1645192480278,45.42658538,94.256,94.202,0.00113501]
[1645192480480,5.306,94.255,94.202,0.00113501]
[1645192481080,5.306,94.257,94.202,0.00113501]
[1645192481480,5.306,94.257,94.204,0.84559285]
[1645192481880,15.928,94.25,94.204,0.84559285]
[1645192482682,5.306,94.249,94.204,0.84559285]
[1645192486285,5.306,94.249,94.202,0.84643491]
[1645192487089,5.306,94.249,94.202,39.23316994]
[1645192487487,15.928,94.25,94.202,39.23316994]
[1645192487689,52.27052573,94.256,94.202,39.23316994]
[1645192488190,24.5533,94.258,94.202,39.23316994]
[1645192488791,5.306,94.269,94.202,39.23316994]
[1645192488989,5.306,94.269,94.203,23.9567]
[1645192489188,46.16344843,94.268,94.203,23.9567]
[1645192491089,46.16344843,94.268,94.204,0.84559285]
[1645192491290,46.16344843,94.268,94.21,15.9225]
[1645192491489,23.3579,94.267,94.204,0.84559285]
[1645192496394,23.3579,94.267,94.203,24.8019999]
[1645192498099,5.305,94.266,94.203,24.8019999]
[1645192500818,5.305,94.266,94.203,23.9567]
[1645192501018,6.29838189,94.266,94.203,23.9567]
[1645192502219,0.99338189,94.266,94.203,23.9567]
[1645192504820,0.99338189,94.266,94.21,15.9229]
[1645192506423,0.99338189,94.266,94.22,15.9201]
[1645192506624,0.99338189,94.266,94.224,169.8]
[1645192506825,0.99338189,94.266,94.225,5.305]
[1645192507026,0.99338189,94.266,94.225,7.9343831]
[1645192507229,0.99338189,94.266,94.229,169.8]
[1645192507433,0.99338189,94.266,94.231,63.6]
[1645192507632,0.99338189,94.266,94.24,15.916]
[1645192507831,0.99338189,94.266,94.242,44.15567778]
[1645192508027,47.698,94.335,94.243,111.504]
[1645192508530,5.301,94.334,94.243,111.504]
[1645192509029,43.15341303,94.329,94.25,15.9149]
[1645192509228,43.15341303,94.329,94.251,5.301]
[1645192509428,43.15341303,94.329,94.246,5.301]
[1645192510230,43.15341303,94.329,94.271,38.89444515]
[1645192511932,43.15341303,94.329,94.27,15.9129]
[1645192512132,43.15341303,94.329,94.26,15.9155]
[1645192512933,43.15341303,94.329,94.261,44.13378684]
[1645192514335,43.15341303,94.329,94.27,15.9133]
[1645192514738,47.698,94.335,94.27,15.9133]
[1645192515539,47.698,94.335,94.28,15.9115]
[1645192515742,54.26447752,94.334,94.281,42.91860801]
[1645192518740,47.698,94.335,94.281,42.91860801]
[1645192518941,47.698,94.335,94.29,15.9101]
[1645192519742,42.99027966,94.334,94.29,15.9101]
[1645192520542,47.698,94.335,94.29,15.9101]
[1645192520743,28.6147,94.355,94.29,15.9101]
[1645192521543,55.14619162,94.354,94.29,15.9101]
[1645192525055,23.3137,94.355,94.29,15.9101]
[1645192525250,15.908,94.37,94.3,15.907]
[1645192525451,53.0254,94.4,94.301,24.194]
[1645192525452,23.1436,94.374,94.301,24.194]
[1645192526060,40.23838924,94.373,94.302,40.53010542]
[1645192527456,40.23838924,94.373,94.31,15.9063]
[1645192529057,40.23838924,94.373,94.32,15.9049]
[1645192529257,40.23838924,94.373,94.321,47.02228943]
[1645192530659,40.23838924,94.373,94.32,15.9049]
[1645192531062,0.63324164,94.351,94.32,15.9049]
[1645192532080,0.63324164,94.351,94.321,5.3]
[1645192532681,0.63324164,94.351,94.321,29.5655]
[1645192533683,0.63324164,94.351,94.321,5.3]
[1645192533882,0.63324164,94.351,94.32,15.9049]
[1645192535983,0.63324164,94.351,94.31,15.9066]
[1645192536585,0.63324164,94.351,94.28,58.3235]
[1645192536783,0.63324164,94.351,94.286,23.2116]
[1645192536985,23.8414831,94.35,94.286,23.2116]
[1645192537188,25.33752066,94.35,94.286,23.2116]
[1645192537392,2.6293831,94.349,94.287,46.10241602]
[1645192537591,4.12542066,94.349,94.287,46.10241602]
[1645192537788,24.0479,94.35,94.287,46.10241602]
[1645192538186,24.0479,94.35,94.29,15.9092]
[1645192540889,39.9593,94.35,94.286,23.2116]
[1645192541090,6.79703756,94.349,94.286,23.2116]
[1645192541295,1.49603756,94.344,94.289,1.20409158]
[1645192541490,6.79703756,94.343,94.289,1.20409158]
[1645192541689,1.49603756,94.347,94.289,1.20409158]
[1645192541892,5.301,94.346,94.289,1.20409158]
[1645192542089,1.49603756,94.343,94.289,1.20409158]
[1645192542290,5.301,94.342,94.289,1.20409158]
[1645192543090,6.79703756,94.342,94.289,1.20409158]
[1645192543289,15.9129,94.34,94.289,1.20409158]
[1645192543491,5.301,94.339,94.289,1.20409158]
[1645192543692,41.86119974,94.338,94.289,1.20409158]
[1645192543893,66.01529974,94.338,94.289,1.20409158]
[1645192546493,66.01529974,94.338,94.27,17.11669916]
[1645192546694,15.9145,94.33,94.27,1.20379916]
[1645192547093,5.301,94.329,94.27,1.20379916]
[1645192547295,1.49603756,94.327,94.27,1.20379916]
[1645192547494,23.1219,94.326,94.27,1.20379916]
[1645192548094,24.61793756,94.326,94.27,1.20379916]
[1645192548297,1.49603756,94.325,94.27,1.20379916]
[1645192549995,23.1219,94.326,94.27,1.20379916]
[1645192551001,24.61793756,94.326,94.27,1.20379916]
[1645192551201,1.49603756,94.325,94.262,24.98047767]
[1645192551402,1.49603756,94.324,94.262,24.98047767]
[1645192551604,15.9163,94.32,94.262,1.20657767]
[1645192552006,1.49603756,94.318,94.262,1.20657767]
[1645192552206,16.89603756,94.31,94.262,1.20657767]
[1645192552503,1.49603756,94.303,94.262,1.20657767]
[1645192552702,106.2,94.299,94.262,1.20657767]
[1645192552903,5.303,94.298,94.262,1.20657767]
[1645192553102,7.9323831,94.302,94.262,1.20657767]
[1645192553704,43.81823284,94.301,94.262,1.20657767]
[1645192553905,5.303,94.3,94.262,1.20657767]
[1645192554105,7.9323831,94.3,94.262,1.20657767]
[1645192554304,15.9225,94.29,94.262,1.20657767]
[1645192554506,5.303,94.289,94.262,1.20657767]
[1645192555704,15.9225,94.29,94.262,1.20657767]
[1645192556405,15.9225,94.29,94.226,24.22904791]
[1645192556611,22.5387,94.289,94.226,24.22904791]
[1645192560613,15.9234,94.28,94.226,24.22904791]
[1645192560812,15.9234,94.28,94.226,1.20774791]
[1645192561014,5.304,94.279,94.204,23.8998]
[1645192561213,52.46109434,94.278,94.204,23.8998]
[1645192561418,111.505,94.277,94.204,23.8998]
[1645192561613,27.932,94.277,94.204,23.8998]
[1645192562516,15.9259,94.27,94.204,23.8998]
[1645192566042,15.9259,94.27,94.205,53.86962839]
[1645192567645,15.9259,94.27,94.206,5.305]
[1645192568144,0.62373573,94.276,94.206,5.305]
[1645192569947,0.62373573,94.276,94.21,15.9226]
[1645192571147,22.627,94.277,94.21,15.9226]
[1645192573148,22.627,94.277,94.207,1.2160682]
[1645192573347,15.9249,94.27,94.207,1.2160682]
[1645192576151,15.9249,94.27,94.204,25.11513589]
[1645192577057,106.2,94.269,94.204,25.11513589]
[1645192577253,106.2,94.259,94.204,1.21533589]
[1645192577457,5.306,94.258,94.204,1.21533589]
[1645192577855,146.7642985,94.257,94.204,1.21533589]
[1645192578053,5.306,94.256,94.204,1.21533589]
[1645192578254,15.9283,94.25,94.204,1.21533589]
[1645192578452,5.306,94.249,94.204,1.21533589]
[1645192579051,5.306,94.254,94.204,1.21533589]
[1645192580351,15.93,94.24,94.204,1.21533589]
[1645192580751,106.2,94.239,94.204,1.21533589]
[1645192580954,106.2,94.239,94.202,1.21734968]
[1645192581152,106.2,94.237,94.202,1.21734968]
[1645192581553,106.2,94.235,94.202,1.21734968]
[1645192581956,51.07942486,94.236,94.202,1.21734968]
[1645192582358,15.9318,94.23,94.202,1.21734968]
[1645192585661,5.306,94.229,94.202,1.21734968]
[1645192586359,5.306,94.229,94.204,1.21650762]
[1645192588162,15.9318,94.23,94.204,1.21650762]
[1645192589467,15.9318,94.23,94.202,1.21734968]
[1645192589468,106.2,94.228,94.202,0.00734968]
[1645192589669,106.2,94.219,94.202,0.00734968]
[1645192589868,5.307,94.218,94.202,0.00734968]
[1645192590068,44.94883579,94.217,94.202,0.00734968]
[1645192590266,5.307,94.216,94.202,0.00734968]
[1645192590868,5.307,94.216,94.135,23.395]
[1645192591069,15.9364,94.21,94.135,23.395]
[1645192591470,5.309,94.209,94.135,23.395]
[1645192591870,5.309,94.209,94.136,46.70126789]
[1645192592077,24.487,94.208,94.136,46.70126789]
[1645192592475,44.94883579,94.217,94.141,106.2]
[1645192592673,44.94883579,94.217,94.145,106.2]
[1645192592873,44.94883579,94.217,94.147,106.2]
[1645192593071,44.94883579,94.217,94.149,106.2]
[1645192593273,44.94883579,94.217,94.15,5.308]
[1645192593472,44.94883579,94.217,94.151,40.85763458]
[1645192593673,44.94883579,94.217,94.152,5.308]
[1645192595776,44.94883579,94.217,94.151,40.85763458]
[1645192595974,1.06957612,94.207,94.151,40.85763458]
[1645192597477,5.309,94.206,94.151,40.85763458]
[1645192598075,24.1941,94.205,94.151,40.85763458]
[1645192598275,5.309,94.204,94.151,40.85763458]
[1645192598576,24.1941,94.205,94.151,40.85763458]
[1645192598981,130.3941,94.205,94.133,16.2994]
[1645192599378,7.9383831,94.204,94.133,16.2994]
[1645192599786,2.6293831,94.203,94.133,16.2994]
[1645192600085,52.33847657,94.202,94.134,40.64419064]
[1645192600485,15.9371,94.2,94.135,23.7813]
[1645192600688,5.309,94.199,94.135,23.7813]
[1645192600890,106.2,94.198,94.135,23.7813]
[1645192601089,106.2,94.196,94.153,0.76938345]
[1645192601288,111.509,94.195,94.153,0.76938345]
[1645192601691,24.9405,94.194,94.153,0.76938345]
[1645192601888,5.309,94.193,94.153,0.76938345]
[1645192602292,15.9387,94.19,94.153,0.76938345]
[1645192602491,5.309,94.189,94.153,0.76938345]
[1645192604291,50.49228394,94.179,94.153,0.76938345]
[1645192604894,55.80128394,94.179,94.153,0.76938345]
[1645192605093,50.49228394,94.179,94.153,0.76938345]
[1645192605497,23.8358,94.178,94.153,0.76938345]
[1645192606096,23.8358,94.178,94.12,41.29164974]
[1645192606296,23.8358,94.178,94.12,0.76909019]
[1645192606495,15.9416,94.17,94.12,0.76909019]
[1645192610815,15.9416,94.17,94.114,49.48950397]
[1645192611823,23.8358,94.178,94.114,49.48950397]
[1645192612017,50.49228394,94.179,94.115,5.311]
[1645192612317,50.49228394,94.179,94.116,2.6293831]
[1645192612516,50.49228394,94.179,94.117,5.309]
[1645192612717,5.309,94.214,94.118,106.2]
[1645192613016,15.9364,94.21,94.121,106.2]
[1645192613222,15.9364,94.21,94.123,106.2]
[1645192613421,15.9364,94.21,94.125,106.2]
[1645192613712,50.25762721,94.209,94.127,106.2]
[1645192614076,50.25762721,94.209,94.129,106.2]
[1645192614082,50.25762721,94.209,94.13,38.74793131]
[1645192614220,50.25762721,94.209,94.13,54.68343131]
[1645192614621,55.56662721,94.209,94.13,54.68343131]
[1645192614820,15.9365,94.2,94.13,38.74793131]
[1645192615022,5.309,94.199,94.13,38.74793131]
[1645192615222,32.0485831,94.199,94.13,38.74793131]
[1645192615421,2.6293831,94.198,94.13,38.74793131]
[1645192615723,5.309,94.197,94.13,38.74793131]
[1645192616322,15.9386,94.19,94.13,38.74793131]
[1645192616522,15.9386,94.19,94.126,23.7391]
[1645192616523,49.33734506,94.189,94.126,23.7391]
[1645192616925,106.2,94.188,94.126,23.7391]
[1645192617124,106.2,94.186,94.126,23.7391]
[1645192617324,106.2,94.184,94.126,23.7391]
[1645192617525,106.2,94.182,94.126,23.7391]
[1645192617723,106.2,94.18,94.126,23.7391]
[1645192617926,106.2,94.178,94.126,23.7391]
[1645192618125,15.9424,94.17,94.126,23.7391]
[1645192618329,47.37984851,94.169,94.126,23.7391]
[1645192621929,15.9424,94.17,94.126,23.7391]
[1645192623928,28.3556,94.175,94.126,23.7391]
[1645192624128,23.0466,94.175,94.126,23.7391]
[1645192626230,1.39401582,94.169,94.126,23.7391]
[1645192627435,1.39401582,94.169,94.127,5.309]
[1645192627832,1.39401582,94.169,94.126,23.7391]
[1645192630237,1.39401582,94.169,94.127,5.309]
[1645192630441,1.39401582,94.169,94.128,106.2]
[1645192630639,1.39401582,94.169,94.13,15.9359]
[1645192630847,1.39401582,94.169,94.132,0.6923149]
[1645192631051,5.309,94.207,94.133,106.2]
[1645192631244,1.49603756,94.208,94.14,63.6]
[1645192631445,1.49603756,94.226,94.142,63.6]
[1645192631747,49.0189,94.258,94.142,63.6]
[1645192631748,1.49603756,94.231,94.144,63.6]
[1645192631946,1.49603756,94.232,94.145,28.0628]
[1645192632143,1.49603756,94.237,94.145,28.0628]
[1645192632344,1.49603756,94.236,94.145,30.6921831]
[1645192632543,40.60863989,94.235,94.146,2.6293831]
[1645192632744,40.60863989,94.235,94.147,5.308]
[1645192633147,23.276,94.234,94.147,5.308]
[1645192633862,15.9317,94.23,94.146,5.308]
[1645192634063,1.49603756,94.226,94.145,22.7548]
[1645192634468,1.49603756,94.223,94.145,22.7548]
[1645192634764,106.2,94.221,94.145,22.7548]
[1645192634966,48.43805865,94.219,94.145,22.7548]
[1645192635165,15.9354,94.21,94.145,22.7548]
[1645192635365,5.309,94.209,94.145,22.7548]
[1645192635668,22.7283,94.208,94.145,22.7548]
[1645192636365,106.2,94.207,94.145,22.7548]
[1645192637165,22.7283,94.208,94.145,22.7548]
[1645192637367,15.9365,94.2,94.145,22.7548]
[1645192638573,40.47574644,94.199,94.145,22.7548]
[1645192639172,15.9383,94.19,94.132,0.6923149]
[1645192639373,24.3233,94.189,94.132,0.6923149]
[1645192639571,106.2,94.188,94.132,0.6923149]
[1645192640974,106.2,94.186,94.147,0.59851445]
[1645192641177,111.509,94.185,94.147,0.59851445]
[1645192641373,15.9402,94.18,94.147,0.59851445]
[1645192641573,5.309,94.179,94.147,0.59851445]
[1645192641774,23.3398,94.178,94.147,0.59851445]
[1645192645179,15.9402,94.18,94.147,0.59851445]
[1645192645381,54.58676053,94.184,94.147,0.59851445]
[1645192645981,23.4509,94.183,94.147,0.59851445]
[1645192646283,23.4509,94.183,94.132,1.29053604]
[1645192646480,15.94,94.18,94.132,1.29053604]
[1645192647183,5.309,94.179,94.132,1.29053604]
[1645192647390,15.94,94.18,94.132,1.29053604]
[1645192650988,15.94,94.18,94.132,0.6923149]
[1645192651188,1.31189391,94.179,94.132,0.6923149]
[1645192655194,6.62089391,94.179,94.132,0.6923149]
[1645192659902,1.31189391,94.179,94.132,0.6923149]
[1645192661005,54.58676053,94.184,94.134,0.52628439]
[1645192663007,24.2457,94.183,94.134,0.52628439]
[1645192663609,5.309,94.182,94.134,0.52628439]
[1645192664408,106.2,94.179,94.134,0.52628439]
[1645192664609,106.2,94.177,94.134,0.52628439]
[1645192664809,106.2,94.175,94.134,0.52628439]
[1645192665312,5.309,94.174,94.134,0.52628439]
[1645192666107,5.309,94.174,94.136,0.52599101]
[1645192666310,15.9419,94.17,94.136,0.52599101]
[1645192666511,50.16888154,94.168,94.136,0.52599101]
[1645192666915,22.9901,94.167,94.136,0.52599101]
[1645192667839,5.309,94.169,94.136,0.52599101]
[1645192668037,1.49603756,94.186,94.136,0.52599101]
[1645192668235,1.49603756,94.198,94.136,0.52599101]
[1645192668837,38.81388359,94.197,94.136,0.52599101]
[1645192670738,5.309,94.196,94.136,0.52599101]
[1645192671137,6.80503756,94.196,94.134,1.05198202]
[1645192671337,1.49603756,94.196,94.134,1.05198202]
[1645192671737,38.81388359,94.197,94.134,1.05198202]
[1645192673341,15.9385,94.19,94.134,1.05198202]
[1645192674842,38.81388359,94.197,94.134,1.05198202]
[1645192675242,40.30992115,94.197,94.134,1.05198202]
[1645192675842,38.81388359,94.197,94.134,1.05198202]
[1645192676043,15.9382,94.19,94.134,1.05198202]
[1645192676245,15.9382,94.19,94.134,0.52628439]
[1645192677046,6.80503756,94.194,94.134,0.52628439]
[1645192677247,38.81388359,94.197,94.134,0.52628439]
[1645192678459,15.9383,94.19,94.134,0.52628439]
[1645192680856,40.30992115,94.197,94.134,0.52628439]
[1645192681053,38.81388359,94.197,94.134,0.52628439]
[1645192681255,1.37892348,94.196,94.134,0.52628439]
[1645192682254,15.9384,94.19,94.134,0.52628439]
[1645192682655,6.80503756,94.189,94.134,0.52628439]
[1645192682856,1.49603756,94.188,94.134,0.52628439]
[1645192683058,5.309,94.187,94.134,0.52628439]
[1645192683254,22.8644,94.186,94.134,0.52628439]
[1645192683553,5.309,94.185,94.134,0.52628439]
[1645192684355,45.02499659,94.179,94.134,0.52628439]
[1645192685962,5.309,94.185,94.134,0.52628439]
[1645192686161,22.8644,94.186,94.134,0.52628439]
[1645192686465,1.49603756,94.208,94.134,4.83528439]
[1645192686660,1.49603756,94.215,94.134,4.83528439]
[1645192686860,24.0628,94.218,94.134,4.83528439]
[1645192686861,1.49603756,94.217,94.135,30.14207128]
[1645192687066,50.84829402,94.196,94.136,5.309]
[1645192687663,50.84829402,94.196,94.137,30.14207128]
[1645192687862,50.84829402,94.196,94.138,5.309]
[1645192688462,50.84829402,94.196,94.14,15.9342]
[1645192689062,22.5834,94.195,94.14,15.9342]
[1645192689262,22.5834,94.195,94.133,24.3715]
[1645192689667,27.8924,94.195,94.133,24.3715]
[1645192690064,22.5834,94.195,94.133,24.3715]
[1645192690866,22.5834,94.195,94.187,0.0023149]
[1645192691668,0.55109692,94.194,94.187,0.0023149]
[1645192695393,1.49603756,94.222,94.188,2.48110304]
[1645192695596,1.49603756,94.225,94.188,2.48110304]
[1645192695797,1.49603756,94.227,94.188,2.48110304]
[1645192695996,1.49603756,94.231,94.188,2.48110304]
[1645192696594,42.7046279,94.23,94.188,2.48110304]
[1645192697200,44.20066546,94.23,94.188,2.48110304]
[1645192697799,42.7046279,94.23,94.188,2.48110304]
[1645192701202,58.6361279,94.23,94.188,2.48110304]
[1645192701604,5.307,94.229,94.188,2.48110304]
[1645192706112,42.7046279,94.23,94.188,2.48110304]
[1645192708511,23.5432,94.238,94.188,2.48110304]
[1645192708910,1.49603756,94.252,94.19,15.9261]
[1645192709312,1.49603756,94.257,94.19,15.9261]
[1645192709611,50.99272064,94.256,94.19,15.9261]
[1645192710617,50.99272064,94.256,94.191,5.306]
[1645192710812,50.99272064,94.256,94.2,15.9233]
[1645192711112,1.4489006,94.229,94.201,60.10367051]
[1645192711512,1.4489006,94.229,94.202,5.307]
[1645192711715,1.4489006,94.229,94.201,24.9036]
[1645192716314,40.79999385,94.239,94.201,24.9036]
[1645192721220,39.77791494,94.239,94.203,0.89622015]
[1645192721420,1.49603756,94.254,94.203,0.89622015]
[1645192721619,1.49603756,94.255,94.203,0.89622015]
[1645192721822,1.49603756,94.253,94.203,0.89622015]
[1645192722518,41.27009872,94.252,94.203,0.89622015]
[1645192723922,1.49603756,94.251,94.203,0.89622015]
[1645192724623,42.76613628,94.252,94.203,0.89622015]
[1645192724832,1.49603756,94.249,94.203,0.89622015]
[1645192725023,1.49603756,94.24,94.203,0.89622015]
[1645192725223,1.49603756,94.237,94.203,0.89622015]
[1645192725831,39.88224797,94.236,94.203,0.89622015]
[1645192726024,24.4322,94.235,94.203,0.89622015]
[1645192726224,24.4322,94.235,94.19,53.0973661]
[1645192726425,24.4322,94.235,94.19,0.89592543]
[1645192726826,25.92823756,94.235,94.19,0.89592543]
[1645192727050,5.307,94.234,94.19,0.89592543]
[1645192727247,1.49603756,94.228,94.19,0.89592543]
[1645192727450,5.307,94.227,94.19,0.89592543]
[1645192728251,1.49603756,94.23,94.19,0.89592543]
[1645192728456,15.9316,94.23,94.19,0.89592543]
[1645192730055,17.42763756,94.23,94.19,0.89592543]
[1645192730453,6.80303756,94.229,94.19,0.89592543]
[1645192730651,1.49603756,94.226,94.19,0.89592543]
[1645192730853,5.307,94.225,94.19,0.89592543]
[1645192731054,5.307,94.225,94.168,23.97974132]
[1645192731654,1.49603756,94.223,94.168,23.97974132]
[1645192731858,6.80403756,94.222,94.168,23.97974132]
[1645192732056,1.49603756,94.223,94.168,23.97974132]
[1645192732455,5.308,94.222,94.168,23.97974132]
[1645192732657,43.61197215,94.221,94.168,23.97974132]
[1645192734257,6.80403756,94.22,94.168,23.97974132]
[1645192734458,1.49603756,94.219,94.168,23.97974132]
[1645192734658,5.308,94.218,94.168,23.97974132]
[1645192735159,43.61197215,94.221,94.168,23.97974132]
[1645192735360,15.9332,94.22,94.168,23.97974132]
[1645192735561,21.2412,94.22,94.168,23.97974132]
[1645192736163,21.2412,94.22,94.17,0.9010848]
[1645192739965,106.2,94.219,94.17,0.9010848]
[1645192740166,106.2,94.209,94.17,0.9010848]
[1645192740364,15.935,94.21,94.17,0.9010848]
[1645192740365,106.2,94.207,94.17,0.9010848]
[1645192740967,29.1585,94.208,94.17,0.9010848]
[1645192741171,5.308,94.206,94.147,53.56040619]